bitfinex/quotes_SOLUSD_20260202
["timestamp","ask_amount","ask_price","bid_price","bid_amount"]
[1769994672335,15.89713015,101.13,101.1,9.89085486]
[1769994672540,3.75266522,101.12,101.08,12.14446493]
[1769994672753,26.20881491,101.14,101.09,12.14446493]
[1769994673254,12.14446493,101.13,101.08,27.17607044]
[1769994673545,3.75266522,101.09,101.07,9.89413277]
[1769994673953,3.75266522,101.1,101.07,9.89413277]
[1769994674146,3.75266522,101.09,101.01,2.44155065]
[1769994674346,3.75266522,101.06,101.02,12.14446493]
[1769994674848,3.75266522,101.06,101.02,46.79106955]
[1769994675228,12.14446493,101.05,101.01,9.89926488]
[1769994675428,3.75266522,101.04,101.01,9.89994783]
[1769994675624,3.75266522,101.05,101.01,22.04441276]
[1769994675854,15.89713015,101.07,101.03,12.14446493]
[1769994676033,3.75266522,101.06,101.03,12.14446493]
[1769994676354,3.75266522,101.06,101.02,12.14446493]
[1769994676552,3.75266522,101.08,101.04,12.14446493]
[1769994676847,3.75266522,101.08,101.04,9.89668718]
[1769994676848,13.64605546,101.08,101.04,9.89668718]
[1769994677048,13.64605546,101.08,101.03,24.74435051]
[1769994677049,3.75266522,101.07,101.03,9.89735837]
[1769994677250,22.03785517,101.08,101.0,22.04527285]
[1769994677251,3.75266522,101.04,101.0,22.04527285]
[1769994677547,3.75266522,101.04,101.01,9.89962398]
[1769994677753,15.89713015,101.04,101.0,9.9009555]
[1769994678054,25.79052039,101.08,101.03,12.14446493]
[1769994678447,3.75266522,101.07,101.03,22.04219475]
[1769994678641,3.75266522,101.04,101.0,12.14446493]
[1769994678874,15.89713015,101.06,101.01,22.04384193]
[1769994679028,3.75266522,101.06,101.03,12.14446493]
[1769994679227,3.75266522,101.08,101.04,12.14446493]
[1769994679430,3.75266522,101.1,101.07,12.14446493]
[1769994679837,3.75266522,101.12,101.09,12.14446493]
[1769994680049,3.75266522,101.11,101.07,12.14446493]
[1769994680241,3.75266522,101.1,101.04,2.42817613]
[1769994680755,3.75266522,101.1,101.06,12.14446493]
[1769994681052,3.75266522,101.09,101.05,12.14446493]
[1769994681254,3.75266522,101.11,101.07,22.03828434]
[1769994681440,3.75266522,101.1,101.06,22.03922997]
[1769994681753,3.75266522,101.1,101.07,22.03852447]
[1769994682336,3.75266522,101.1,101.08,12.14446493]
[1769994682537,3.75266522,101.1,101.07,22.03852447]
[1769994682743,3.75266522,101.1,101.07,9.89405954]
[1769994682944,3.75266522,101.1,101.07,12.14446493]
[1769994683143,3.75266522,101.12,101.09,12.14446493]
[1769994683342,13.64012567,101.14,101.1,12.14446493]
[1769994683657,3.75266522,101.16,101.13,12.14446493]
[1769994683834,3.75266522,101.16,101.12,12.14446493]
[1769994684032,3.75266522,101.13,101.09,12.14446493]
[1769994684235,3.75266522,101.12,101.08,12.14446493]
[1769994684555,3.75266522,101.09,101.01,12.14446493]
[1769994684746,12.14446493,101.1,101.05,25.9294466]
[1769994684944,12.14446493,101.09,101.05,34.63566415]
[1769994685139,12.14446493,101.08,101.03,12.14446493]
[1769994685341,24.72378682,101.12,101.06,12.14446493]
[1769994685554,12.14446493,101.12,101.07,12.14446493]
[1769994685934,22.03272756,101.13,101.08,12.14446493]
[1769994686333,9.88771875,101.14,101.1,12.14446493]
[1769994686741,3.75266522,101.15,101.12,12.14446493]
[1769994686944,3.75266522,101.16,101.13,12.14446493]
[1769994687152,3.75266522,101.14,101.09,3.88954513]
[1769994687350,3.75266522,101.14,101.1,22.03504821]
[1769994687638,12.14446493,101.11,101.07,25.92762099]
[1769994687855,12.14446493,101.11,101.06,12.14446493]
[1769994688046,12.14446493,101.08,101.03,16.03401006]
[1769994688246,12.14446493,101.06,101.01,16.03401006]
[1769994688756,15.89713015,101.06,101.02,12.14446493]
[1769994688942,15.89713015,101.06,101.02,9.89902989]
[1769994689144,15.89713015,101.05,101.01,9.89964708]
[1769994689458,3.75266522,101.05,101.01,9.89980123]
[1769994689656,3.75266522,101.03,100.99,22.14596839]
[1769994689858,15.89713015,101.03,100.99,10.00150934]
[1769994690065,15.89713015,101.01,100.99,0.1]
[1769994690269,15.89713015,101.01,100.97,10.22134217]
[1769994690560,15.89713015,101.06,101.01,3.88954513]
[1769994690767,15.89713015,101.06,101.0,12.14446493]
[1769994690768,15.89713015,101.08,101.04,12.14446493]
[1769994690961,3.75266522,101.08,101.05,22.04055597]
[1769994691164,3.75266522,101.07,101.03,12.14446493]
[1769994691361,3.75266522,101.07,101.05,12.14446493]
[1769994691863,25.78961436,101.09,101.05,12.14446493]
[1769994692065,3.75266522,101.09,101.05,12.14446493]
[1769994692249,3.75266522,101.07,101.03,9.89772574]
[1769994692449,25.78939324,101.09,101.05,12.14446493]
[1769994692757,3.75266522,101.09,101.06,12.14446493]
[1769994692950,13.64488319,101.09,101.05,12.14446493]
[1769994693150,3.75266522,101.08,101.05,9.89607396]
[1769994693367,3.75266522,101.08,101.05,22.04053889]
[1769994693668,3.75266522,101.09,101.05,12.14446493]
[1769994693853,15.89713015,101.09,101.05,12.14446493]
[1769994694355,15.89713015,101.09,101.04,25.93071643]
[1769994694562,9.89143164,101.1,101.03,22.0421018]
[1769994694563,3.75266522,101.07,101.03,22.0421018]
[1769994694957,3.75266522,101.09,101.06,12.14446493]
[1769994695156,3.75266522,101.09,101.06,22.03943568]
[1769994695557,3.75266522,101.1,101.06,12.14446493]
[1769994695758,3.75266522,101.08,101.02,24.74618157]
[1769994695971,3.75266522,101.05,101.02,9.89847044]
[1769994696579,15.99937888,101.07,101.03,12.24671366]
[1769994697079,25.89483964,101.06,101.02,9.89847044]
[1769994697371,25.89466426,101.06,101.02,22.1451841]
[1769994697755,3.75266522,101.06,101.02,22.1451841]
[1769994697973,13.64800516,101.06,101.01,13.78938804]
[1769994698159,3.74193292,101.05,101.01,46.89658132]
[1769994698365,3.74193292,101.05,101.01,22.14655657]
[1769994698568,3.74193292,101.05,101.01,46.89658132]
[1769994698776,3.74193292,101.07,101.03,12.24671366]
[1769994699156,3.74193292,101.07,101.04,22.14378412]
[1769994699385,3.74193292,101.04,101.0,22.14692483]
[1769994699585,15.98864658,101.04,101.0,9.90021117]
[1769994700078,15.98864658,101.04,101.01,9.89964618]
[1769994700457,3.74193292,101.04,101.01,9.89964618]
[1769994701064,3.74193292,101.06,101.01,22.14635984]
[1769994701264,15.98864658,101.04,101.0,13.74917046]
[1769994701456,15.98864658,101.04,100.97,0.3174703]
[1769994701457,3.74193292,101.01,100.98,9.9024565]
[1769994701667,15.98864658,101.01,100.98,9.9024565]
[1769994701960,12.24671366,100.99,100.97,10.22138459]
[1769994702161,12.24671366,101.0,100.97,10.22138459]
[1769994702361,12.24671366,100.99,100.97,0.3174703]
[1769994702562,12.24671366,101.0,100.97,0.3174703]
[1769994702971,113.96525918,101.06,100.97,0.3174703]
[1769994703180,22.14784292,101.0,100.97,0.3174703]
[1769994703381,22.14784292,101.0,100.96,10.00441698]
[1769994703382,12.5310368,100.98,100.91,2.47215037]
[1769994703560,12.24671366,100.95,100.91,2.47215037]
[1769994703761,15.98864658,100.95,100.91,2.47215037]
[1769994704063,16.27296972,100.96,100.91,18.56746096]
[1769994704262,3.74193292,100.96,100.92,12.24671366]
[1769994704463,3.74193292,100.96,100.91,41.0045249]
[1769994704675,15.98864658,100.98,100.93,12.24671366]
[1769994704976,13.64306218,101.0,100.95,16.09531059]
[1769994705158,25.88977584,101.0,100.95,16.09531059]
[1769994705358,15.98864658,100.98,100.93,16.09531059]
[1769994705564,15.98864658,100.97,100.93,13.75598827]
[1769994705784,3.74193292,100.97,100.93,16.09531059]
[1769994706183,12.24671366,100.94,100.91,12.38117014]
[1769994706687,0.28432314,100.96,100.91,16.11536826]
[1769994706688,12.24671366,100.96,100.91,16.11536826]
[1769994706985,12.24671366,100.97,100.92,15.98091178]
[1769994707159,9.9016888,101.0,100.96,12.24671366]
[1769994707360,13.62043058,101.0,100.96,12.24671366]
[1769994707560,3.71874178,101.0,100.96,12.24671366]
[1769994707776,15.96545544,101.0,100.95,15.98091178]
[1769994708079,3.71874178,101.0,100.96,12.24671366]
[1769994708381,12.24671366,100.98,100.94,9.90687537]
[1769994708778,15.96545544,100.97,100.93,9.90756606]
[1769994709385,25.86961138,100.97,100.93,9.90756606]
[1769994709762,12.24671366,100.96,100.92,13.64267129]
[1769994709959,15.96545544,100.98,100.93,15.98091178]
[1769994710473,15.96545544,100.98,100.94,12.24671366]
[1769994710677,15.96545544,101.0,100.95,15.98091178]
[1769994710979,15.96545544,101.0,100.92,34.68056988]
[1769994710980,13.61826655,101.02,100.99,12.24671366]
[1769994711166,13.61826655,101.02,100.98,12.24671366]
[1769994711368,13.61826655,101.02,100.98,22.14902236]
[1769994711663,3.71874178,101.02,100.99,12.24671366]
[1769994711982,53.75325684,101.06,101.01,12.24671366]
[1769994711983,3.71874178,101.06,101.01,12.24671366]
[1769994712278,3.71874178,101.05,101.01,3.73419812]
[1769994712494,3.71874178,101.03,100.98,78.14059817]
[1769994712777,15.96545544,101.02,100.98,9.9023087]
[1769994712985,4.00306492,101.04,100.99,15.98091178]
[1769994713186,3.71874178,101.04,101.0,12.24671366]
[1769994713387,15.96545544,101.04,100.99,15.98091178]
[1769994713573,25.8633935,101.04,100.99,25.88239508]
[1769994713879,13.61667984,101.04,100.99,25.88239508]
[1769994714182,25.8633935,101.04,100.99,25.88239508]
[1769994714381,15.96545544,101.02,100.98,9.90245403]
[1769994714593,3.71874178,101.01,100.99,9.90182486]
[1769994714761,3.71874178,101.01,100.98,9.90249343]
[1769994715082,3.71874178,101.04,101.0,12.24671366]
[1769994715284,25.86090022,101.06,101.01,12.24671366]
[1769994715469,13.61418656,101.06,101.02,12.24671366]
[1769994715785,13.6125271,101.08,101.04,12.24671366]
[1769994715982,3.71874178,101.07,101.03,12.24671366]
[1769994716168,3.71874178,101.07,101.04,12.24671366]
[1769994716764,15.96545544,101.07,101.03,12.24671366]
[1769994717269,3.71874178,101.07,101.04,12.24671366]
[1769994717585,13.61133984,101.09,101.05,25.87664911]
[1769994717886,3.71874178,101.09,101.05,25.87664911]
[1769994718380,3.71874178,101.09,101.06,12.24671366]
[1769994718769,9.89154634,101.1,101.06,15.98091178]
[1769994718968,22.13826,101.1,101.06,15.98091178]
[1769994719275,15.96545544,101.09,101.05,9.89573733]
[1769994719976,22.13651942,101.12,101.07,15.98091178]
[1769994720161,15.96545544,101.11,101.07,15.98091178]
[1769994720365,15.96545544,101.11,101.07,3.73419812]
[1769994720579,12.24671366,101.08,101.04,9.89659169]
[1769994720879,12.24671366,101.09,101.04,25.87750347]
[1769994721063,12.24671366,101.07,101.02,15.98091178]
[1769994721266,15.96545544,101.05,101.01,9.89951291]
[1769994721480,15.96545544,101.05,101.02,9.89885757]
[1769994721675,15.96545544,101.05,101.02,9.89897588]
[1769994721890,12.24671366,101.04,101.01,13.63373041]
[1769994722190,15.96545544,101.05,101.01,13.63373041]
[1769994722400,9.93626748,101.13,101.05,3.73419812]
[1769994722569,3.71874178,101.09,101.05,15.98091178]
[1769994722765,12.24671366,101.07,101.03,43.48091178]
[1769994723067,3.71874178,101.03,100.99,9.901104]
[1769994723279,12.24671366,101.02,100.99,9.901104]
[1769994723674,15.96545544,101.03,101.0,9.90077101]
[1769994723863,15.96545544,101.03,100.98,40.73700215]
[1769994724064,12.24671366,101.01,100.98,3.73419812]
[1769994724270,12.24671366,101.02,100.98,3.73419812]
[1769994724484,15.96545544,101.03,100.98,50.64121854]
[1769994724984,15.96545544,101.02,100.98,9.90292907]
[1769994725191,12.24671366,101.02,100.98,13.63712719]
[1769994725692,12.24671366,101.01,100.98,9.90292907]
[1769994726393,12.24671366,101.01,100.97,9.90370648]
[1769994726394,12.24671366,101.0,100.97,9.90370648]
[1769994726575,15.96545544,101.01,100.97,13.6379046]
[1769994727285,25.86557531,101.01,100.97,13.6379046]
[1769994727590,3.71874178,101.0,100.95,28.49760468]
[1769994727771,15.96545544,101.0,100.96,9.90442025]
[1769994727973,13.83389109,101.02,100.98,3.91799944]
[1769994728272,12.24671366,101.04,100.99,16.1647131]
[1769994728585,105.14826003,101.13,101.03,16.1647131]
[1769994728586,34.6226135,101.09,101.03,16.1647131]
[1769994728791,22.13837425,101.1,101.05,16.1647131]
[1769994728978,26.07193268,101.11,101.07,12.24671366]
[1769994729171,3.93454353,101.1,101.06,16.1647131]
[1769994729390,22.13986759,101.08,101.04,3.91799944]
[1769994729574,16.18125719,101.07,101.03,37.39716092]
[1769994729900,16.18125719,101.07,101.03,9.89801694]
[1769994730192,12.24671366,101.06,101.02,13.81656119]
[1769994730400,16.18125719,101.05,101.0,16.1647131]
[1769994730567,16.18125719,101.04,100.99,39.74671366]
[1769994730770,16.18125719,101.03,100.99,9.90195137]
[1769994731378,16.18125719,101.04,101.0,9.90051894]
[1769994731584,16.18125719,101.04,100.99,26.06613858]
[1769994731783,16.18125719,101.03,100.99,3.91799944]
[1769994731987,3.93454353,101.03,100.99,3.91799944]
[1769994732189,16.18125719,101.01,100.96,12.24671366]
[1769994732384,16.18125719,101.0,100.96,3.91799944]
[1769994732587,16.18125719,101.0,100.96,13.82231702]
[1769994732784,16.18125719,100.98,100.93,3.91799944]
[1769994732981,16.18125719,100.98,100.93,16.1647131]
[1769994733172,16.18125719,100.97,100.92,49.65498701]
[1769994733377,26.08617002,100.96,100.92,12.24671366]
[1769994733574,26.08617002,100.96,100.92,9.90881642]
[1769994733907,26.08456914,100.98,100.93,12.24671366]
[1769994734087,12.24671366,100.99,100.94,16.1647131]
[1769994734402,16.18125719,100.99,100.94,12.24671366]
[1769994734587,3.93454353,100.98,100.94,12.24671366]
[1769994734916,16.18125719,100.95,100.91,2.47215037]
[1769994735207,16.18125719,100.94,100.91,2.47215037]
[1769994735403,16.18125719,100.96,100.91,28.5464135]
[1769994735610,24.7577361,100.98,100.94,12.24671366]
[1769994735611,9.90458592,100.97,100.94,12.24671366]
[1769994735814,9.90458592,100.97,100.93,3.91799944]
[1769994735983,9.90458592,100.97,100.91,16.29969984]
[1769994736183,12.24671366,100.94,100.91,2.47215037]
[1769994736497,12.24671366,100.93,100.91,2.47215037]
[1769994736889,12.24671366,100.92,100.88,13.83047778]
[1769994737094,16.18125719,100.93,100.88,26.07719144]
[1769994737310,12.24671366,100.91,100.86,43.6647131]
[1769994737513,3.19671263,100.88,100.85,0.1]
[1769994737714,3.19671263,100.9,100.85,0.1]
[1769994737886,12.24671366,100.89,100.86,9.91461937]
[1769994738086,12.24671366,100.88,100.85,4.01799944]
[1769994738313,15.44342629,100.87,100.83,9.91698686]
[1769994738515,2.99610182,100.83,100.79,5.0697886]
[1769994738805,2.99610182,100.83,100.77,3.91799944]
[1769994738806,12.24671366,100.81,100.77,3.91799944]
[1769994739006,0.28432314,100.81,100.76,4.23546974]
[1769994739209,12.24671366,100.87,100.79,3.91799944]
[1769994739210,2.99610182,100.86,100.79,3.91799944]
[1769994739385,12.91219775,100.84,100.78,3.91799944]
[1769994739591,12.91219775,100.84,100.82,12.24671366]
[1769994739914,0.28432314,100.83,100.8,12.24671366]
[1769994740128,9.91669972,100.84,100.81,12.24671366]
[1769994740284,9.91561892,100.86,100.83,12.24671366]
[1769994740606,25.07010554,100.87,100.85,12.24671366]
[1769994740607,9.91375037,100.87,100.85,12.24671366]
[1769994740810,9.91375037,100.87,100.84,12.24671366]
[1769994741003,34.69812629,100.87,100.85,12.24671366]
[1769994741211,34.69812629,100.87,100.84,12.24671366]
[1769994741413,34.69812629,100.87,100.82,3.91799944]
[1769994741603,37.69243745,100.87,100.82,3.91799944]
[1769994741797,49.93915111,100.87,100.82,12.24671366]
[1769994742000,9.9118539,100.89,100.86,12.24671366]
[1769994742217,12.90517839,100.9,100.85,3.91799944]
[1769994742392,12.90517839,100.9,100.86,12.24671366]
[1769994742589,12.24671366,100.87,100.81,12.24671366]
[1769994742812,12.24671366,100.86,100.81,12.24671366]
[1769994743099,12.24671366,100.88,100.83,12.24671366]
[1769994743287,4.27527085,100.89,100.85,12.24671366]
[1769994743492,9.91276764,100.88,100.86,12.24671366]
[1769994743892,9.91276764,100.88,100.85,12.24671366]
[1769994744516,9.91080277,100.9,100.87,16.22985789]
[1769994744720,9.90883868,100.92,100.89,12.24671366]
[1769994744922,9.90883868,100.92,100.9,12.24671366]
[1769994745107,9.90687537,100.94,100.91,12.24671366]
[1769994745421,12.24671366,100.97,100.93,12.24671366]
[1769994745422,34.66498613,100.97,100.93,12.24671366]
[1769994745630,49.50104496,101.01,100.96,12.24671366]
[1769994745631,9.90325295,100.98,100.96,12.24671366]
[1769994745919,12.24671366,101.03,100.97,12.24671366]
[1769994746095,12.24671366,101.02,100.97,12.24671366]
[1769994746301,96.37181261,101.04,100.99,12.24671366]
[1769994746494,9.89707046,101.04,101.01,12.24671366]
[1769994746693,9.89629352,101.05,101.0,3.98314423]
[1769994746995,9.89511181,101.06,101.04,12.24671366]
[1769994747193,9.89315393,101.08,101.05,12.24671366]
[1769994747424,9.89217528,101.09,101.05,12.24671366]
[1769994747600,9.89217528,101.09,101.06,12.24671366]
[1769994747794,34.6226135,101.09,101.05,12.24671366]
[1769994747994,0.2,101.15,101.08,16.22985789]
[1769994748221,0.2,101.15,101.09,3.98314423]
[1769994748397,0.2,101.15,101.04,34.63973409]
[1769994748398,25.86053647,101.13,101.07,3.98314423]
[1769994748607,19.66379385,101.1,101.04,19.61999876]
[1769994748802,0.14216157,101.08,101.03,23.60314299]
[1769994749001,0.14216157,101.08,101.04,23.60314299]
[1769994749302,0.14216157,101.08,101.04,19.61999876]
[1769994749509,19.61999876,101.09,101.06,19.61999876]
[1769994749510,10.17649842,101.09,101.06,19.61999876]
[1769994749715,19.66036309,101.12,101.07,19.61999876]
[1769994749904,34.615765,101.11,101.06,19.61999876]
[1769994750230,19.66036309,101.07,100.95,3.98314423]
[1769994750523,0.28432314,101.05,101.01,3.98314423]
[1769994750709,0.28432314,101.05,101.01,23.60314299]
[1769994750905,19.9043219,101.05,100.99,23.60314299]
[1769994751120,19.61999876,101.04,100.99,23.60314299]
[1769994751630,10.18237322,101.03,101.0,19.61999876]
[1769994752011,10.18237322,101.03,100.99,23.60314299]
[1769994752518,34.92749843,101.03,100.99,3.98314423]
[1769994752708,10.18237322,101.03,100.99,23.60314299]
[1769994752907,9.89733207,101.04,101.0,23.60314299]
[1769994753226,0.28432314,101.03,100.99,19.61999876]
[1769994753427,9.89733207,101.04,100.99,3.98314423]
[1769994753728,9.89583759,101.06,101.03,19.61999876]
[1769994753935,9.89583759,101.06,101.02,19.61999876]
[1769994754228,19.6468556,101.08,101.01,3.98314423]
[1769994754425,0.14216157,101.06,101.02,19.61999876]
[1769994755021,19.78901717,101.08,101.03,19.61999876]
[1769994755227,0.14216157,101.06,101.02,19.61999876]
[1769994755412,0.14216157,101.06,101.03,19.61999876]
[1769994755614,0.28432314,101.06,101.03,19.61999876]
[1769994755910,0.28432314,101.06,101.01,19.61999876]
[1769994755911,0.28432314,101.05,101.01,19.61999876]
[1769994756117,29.51522936,101.06,100.98,23.60314299]
[1769994756118,0.28432314,101.03,100.98,23.60314299]
[1769994756418,19.9043219,101.03,100.98,23.60314299]
[1769994756929,19.9043219,101.01,100.96,23.60314299]
[1769994757123,0.28432314,101.01,100.97,3.98314423]
[1769994757442,9.90295107,100.98,100.94,23.60314299]
[1769994757807,9.90234261,100.99,100.95,19.61999876]
[1769994758211,9.90130743,101.0,100.97,19.61999876]
[1769994758411,9.90001273,101.01,100.97,19.66390908]
[1769994758915,19.66390908,101.0,100.96,23.64705331]
[1769994759427,29.56392181,101.01,100.96,23.64705331]
[1769994759608,19.66390908,101.0,100.96,3.98314423]
[1769994760629,19.66390908,100.98,100.94,3.98314423]
[1769994760827,19.66390908,100.97,100.94,3.98314423]
[1769994761226,19.66390908,100.96,100.92,9.90862119]
[1769994761534,19.66390908,100.93,100.89,13.89487374]
[1769994761732,19.66390908,100.92,100.9,3.98314423]
[1769994762036,19.66390908,100.93,100.9,3.98314423]
[1769994762332,19.66390908,100.93,100.89,3.98314423]
[1769994762537,19.66390908,100.92,100.87,23.64705331]
[1769994762716,19.66390908,100.91,100.86,13.8976555]
[1769994762918,19.66390908,100.9,100.87,3.98314423]
[1769994763108,19.66390908,100.91,100.87,3.98314423]
[1769994763314,19.66390908,100.9,100.87,3.98314423]
[1769994763514,29.57490118,100.9,100.87,3.98314423]
[1769994763922,19.66390908,100.89,100.85,13.89850621]
[1769994764116,19.66390908,100.9,100.86,13.89784826]
[1769994764538,29.57412972,100.91,100.87,9.9137326]
[1769994764837,19.66390908,100.91,100.87,9.9137326]
[1769994765038,29.5729978,100.92,100.87,33.56078591]
[1769994765215,29.8564826,100.93,100.88,23.64705331]
[1769994765413,19.66390908,100.91,100.87,3.98314423]
[1769994765628,19.66390908,100.89,100.86,3.98314423]
[1769994765834,19.66390908,100.9,100.86,3.98314423]
[1769994766035,19.66390908,100.89,100.86,3.98314423]
[1769994766426,19.66390908,100.9,100.86,3.98314423]
[1769994766925,19.66390908,100.89,100.86,3.98314423]
[1769994767122,19.66390908,100.89,100.84,23.64705331]
[1769994767325,19.66390908,100.89,100.85,3.98314423]
[1769994767718,29.57491326,100.9,100.86,3.98314423]
[1769994768118,19.66390908,100.91,100.86,3.98314423]
[1769994768337,29.57402472,100.91,100.86,3.98314423]
[1769994768522,19.66390908,100.91,100.86,3.98314423]
[1769994768946,0.28432314,100.91,100.86,3.98314423]
[1769994769129,0.28432314,100.92,100.88,19.66390908]
[1769994769336,29.57215278,100.93,100.89,3.98314423]
[1769994769536,0.28432314,100.92,100.89,3.98314423]
[1769994769718,29.85798822,100.92,100.89,3.98314423]
[1769994769917,0.28432314,100.92,100.89,3.98314423]
[1769994770423,10.19319754,100.92,100.89,3.98314423]
[1769994770622,12.27910354,100.91,100.87,3.98314423]
[1769994770942,12.27910354,100.9,100.87,3.98314423]
[1769994771450,12.27910354,100.9,100.86,3.98314423]
[1769994771743,12.27910354,100.91,100.87,3.98314423]
[1769994771928,12.27910354,100.92,100.88,3.98314423]
[1769994772122,12.27910354,100.95,100.9,12.27910354]
[1769994772322,12.27910354,100.95,100.91,3.98314423]
[1769994772842,12.27910354,100.97,100.92,16.26224777]
[1769994773420,9.90491283,100.96,100.92,16.26224777]
[1769994773633,12.27910354,100.95,100.9,16.26224777]
[1769994773831,12.27910354,100.93,100.89,3.98314423]
[1769994774031,0.28432314,100.95,100.9,3.98314423]
[1769994774032,12.27910354,100.94,100.9,3.98314423]
[1769994774248,12.27910354,100.93,100.9,3.98314423]
[1769994774444,19.69458473,100.93,100.9,3.98314423]
[1769994774742,19.69458473,100.93,100.88,23.67772896]
[1769994774948,19.69458473,100.91,100.87,3.98314423]
[1769994775135,19.69458473,100.91,100.87,13.89633658]
[1769994775338,19.69458473,100.91,100.88,3.98314423]
[1769994775539,19.69458473,100.9,100.87,9.91369679]
[1769994775727,19.69458473,100.91,100.87,3.98314423]
[1769994775922,19.69458473,100.91,100.87,13.89651365]
[1769994776128,19.69458473,100.9,100.87,3.98314423]
[1769994776538,19.69458473,100.89,100.85,13.89865278]
[1769994776741,19.69458473,100.88,100.85,3.98314423]
[1769994776939,34.68469046,100.91,100.86,3.98314423]
[1769994777145,19.69458473,100.89,100.86,3.98314423]
[1769994777952,19.69458473,100.88,100.84,13.89910254]
[1769994778148,19.69458473,100.87,100.84,3.98314423]
[1769994778336,19.69458473,100.87,100.84,13.89982456]
[1769994778647,19.69458473,100.87,100.84,3.98314423]
[1769994779049,19.69458473,100.86,100.82,13.90118808]
[1769994779646,29.60936733,100.86,100.82,3.98314423]
[1769994779939,29.60882131,100.87,100.83,3.98314423]
[1769994780144,19.69458473,100.87,100.83,3.98314423]
[1769994780348,19.69458473,100.86,100.83,3.98314423]
[1769994780545,19.69458473,100.85,100.81,3.98314423]
[1769994780729,19.69458473,100.84,100.8,9.92042094]
[1769994780933,19.69458473,100.84,100.81,13.9022898]
[1769994781347,19.69458473,100.83,100.79,13.90422891]
[1769994781844,19.69458473,100.84,100.8,3.98314423]
[1769994782359,19.69458473,100.81,100.77,3.98314423]
[1769994782533,19.69458473,100.78,100.73,13.91007716]
[1769994782850,4.27527085,100.82,100.73,13.91007716]
[1769994782851,19.69458473,100.76,100.74,9.92634714]
[1769994783155,19.69458473,100.76,100.74,3.98314423]
[1769994783450,19.69458473,100.81,100.77,3.98314423]
[1769994783635,29.61245755,100.83,100.79,3.98314423]
[1769994783826,19.69458473,100.82,100.79,3.98314423]
[1769994784031,19.69458473,100.82,100.77,13.90636882]
[1769994784231,19.69458473,100.82,100.77,33.60095355]
[1769994784532,19.69458473,100.83,100.79,3.98314423]
[1769994785428,19.69458473,100.85,100.81,3.98314423]
[1769994785654,19.69458473,100.86,100.82,3.98314423]
[1769994785830,19.69458473,100.87,100.82,23.67772896]
[1769994786146,19.69458473,100.88,100.83,23.67772896]
[1769994786348,19.69458473,100.86,100.82,3.98314423]
[1769994786564,34.69124789,100.89,100.82,3.98314423]
[1769994786846,27.47111279,101.03,100.86,23.67772896]
[1769994786847,19.69458473,100.91,100.86,23.67772896]
[1769994787056,27.47111279,101.03,100.89,23.67772896]
[1769994787057,9.90821928,100.93,100.89,23.67772896]
[1769994787352,19.69458473,100.93,100.89,3.98314423]
[1769994787577,19.69458473,100.92,100.87,3.98314423]
[1769994787761,19.69458473,100.89,100.85,13.8984782]
[1769994787970,19.69458473,100.9,100.86,3.98314423]
[1769994788151,19.69458473,100.89,100.85,9.91533397]
[1769994788341,19.69458473,100.9,100.86,3.98314423]
[1769994788836,19.8367463,100.91,100.86,23.67772896]
[1769994789156,34.67749925,100.93,100.85,34.70462499]
[1769994789157,19.69458473,100.88,100.85,9.91533397]
[1769994789365,19.69458473,100.88,100.85,13.8984782]
[1769994789666,19.69458473,100.87,100.85,3.98314423]
[1769994789850,19.69458473,100.87,100.83,13.90026792]
[1769994790160,19.69458473,100.86,100.83,3.98314423]
[1769994790665,19.69458473,100.86,100.81,19.69458473]
[1769994790666,19.69458473,100.84,100.81,3.98314423]
[1769994790963,19.69458473,100.85,100.82,3.98314423]
[1769994791172,19.69458473,100.85,100.81,3.98314423]
[1769994791346,19.69458473,100.85,100.81,13.90238861]
[1769994791546,19.69458473,100.84,100.81,3.98314423]
[1769994791753,19.69458473,100.83,100.81,3.98314423]
[1769994791952,19.69458473,100.82,100.79,13.90471933]
[1769994792159,19.69458473,100.82,100.79,3.98314423]
[1769994792472,19.69458473,100.83,100.79,3.98314423]
[1769994792838,0.28432314,100.85,100.8,3.98314423]
[1769994793036,19.69458473,100.84,100.8,3.98314423]
[1769994793252,19.69458473,100.87,100.83,3.98314423]
[1769994794037,19.69458473,100.88,100.84,3.98314423]
[1769994794242,49.54696514,100.92,100.83,29.61223543]
[1769994794243,19.69458473,100.9,100.86,3.98314423]
[1769994794564,29.60440536,100.91,100.87,3.98314423]
[1769994794958,19.69458473,100.91,100.87,3.98314423]
[1769994795161,29.60387986,100.92,100.87,23.67772896]
[1769994795348,29.60387986,100.92,100.87,3.98314423]
[1769994795543,19.69458473,100.91,100.87,3.98314423]
[1769994795745,19.69458473,100.91,100.85,23.67772896]
[1769994795746,19.69458473,100.9,100.85,23.67772896]
[1769994795967,19.69458473,100.9,100.86,13.89787752]
[1769994796354,12.28903981,100.88,100.85,13.89864135]
[1769994796657,12.28903981,100.89,100.85,13.89864135]
[1769994797163,12.28903981,100.88,100.85,3.98314423]
[1769994798469,12.28903981,100.89,100.85,13.89879301]
[1769994798666,22.20084808,100.89,100.85,13.89879301]
[1769994798873,12.28903981,100.89,100.85,13.89798555]
[1769994799168,12.28903981,100.88,100.85,3.98314423]
[1769994799747,12.28903981,100.88,100.84,9.91665093]
[1769994799975,12.28903981,100.88,100.85,3.98314423]
[1769994800152,12.28903981,100.88,100.85,13.89883659]